fUSD/lending_fUSD_20250811
["ID","MTS","AMOUNT","RATE_DAILY","PERIOD"]
[378547719,1754910666443,-400.0,0.00016903,2]
[378547720,1754910666452,-400.0,0.00016903,2]
[378547721,1754910666462,-575.11,0.00016903,2]
[378547722,1754910666471,-614.97,0.00016903,2]
[378547723,1754910666480,-400.0,0.00016903,2]
[378547724,1754910666490,-400.0,0.00016903,2]
[378547725,1754910666499,-400.0,0.00016903,2]
[378547726,1754910666509,-151.0,0.00016903,2]
[378547727,1754910666518,-353.7044038,0.00016903,2]
[378547728,1754910666528,-400.0,0.00016903,2]
[378547729,1754910666537,-400.0,0.00016903,2]
[378547730,1754910666546,-400.0,0.00016903,2]
[378547731,1754910666556,-574.71,0.00016903,2]
[378547732,1754910666565,-1261.76,0.00016903,2]
[378547733,1754910666574,-400.0,0.00016903,2]
[378547734,1754910666583,-400.0,0.00016903,2]
[378547735,1754910666593,-400.0,0.00016903,2]
[378547736,1754910666603,-866.04,0.00016903,2]
[378547737,1754910666613,-400.0,0.00016903,2]
[378547738,1754910666622,-400.0,0.00016903,2]
[378547739,1754910666632,-400.0,0.00016903,2]
[378547740,1754910666642,-346.85937418,0.00016903,2]
[378547741,1754910666651,-400.0,0.00016903,2]
[378547742,1754910666660,-837.97,0.00016903,2]
[378547743,1754910666670,-400.0,0.00016903,2]
[378547744,1754910666679,-400.0,0.00016903,2]
[378547745,1754910666688,-400.0,0.00016903,2]
[378547746,1754910666697,-451.87,0.00016903,2]
[378547747,1754910666707,-400.0,0.00016903,2]
[378547748,1754910666716,-468.52,0.00016903,2]
[378547749,1754910666725,-400.0,0.00016903,2]
[378547750,1754910666735,-400.0,0.00016903,2]
[378547751,1754910666745,-523.36396776,0.00016903,2]
[378547752,1754910666754,-494.9,0.00016903,2]
[378547753,1754910666763,-1343.12,0.00016903,2]
[378547754,1754910666773,-400.0,0.00016903,2]
[378547755,1754910666783,-400.0,0.00016903,2]
[378547756,1754910666792,-401.35631766,0.00016903,2]
[378547757,1754910666802,-400.0,0.00016903,2]
[378547758,1754910666811,-610.6,0.00016903,2]
[378547759,1754910666820,-400.0,0.00016903,2]
[378547760,1754910666831,-400.0,0.00016903,2]
[378547761,1754910666841,-533.69,0.00016903,2]
[378547762,1754910666851,-400.0,0.00016903,2]
[378547763,1754910666860,-418.0,0.00016903,2]
[378547764,1754910666870,-151.0,0.00016903,2]
[378547765,1754910666879,-400.0,0.00016903,2]
[378547766,1754910666888,-400.0,0.00016903,2]
[378547767,1754910666897,-400.0,0.00016903,2]
[378547768,1754910666907,-400.0,0.00016903,2]
[378547769,1754910666917,-1047.2,0.00016903,2]
[378547770,1754910666927,-400.0,0.00016903,2]
[378547771,1754910666936,-400.0,0.00016903,2]
[378547772,1754910666947,-400.0,0.00016903,2]
[378547773,1754910666956,-436.54799565,0.00016903,2]
[378547774,1754910666966,-400.0,0.00016903,2]
[378547775,1754910666975,-429.0,0.00016903,2]
[378547776,1754910666985,-406.94,0.00016903,2]
[378547777,1754910666994,-402.10054474,0.00016903,2]
[378547778,1754910667004,-427.89,0.00016903,2]
[378547779,1754910667013,-400.0,0.00016903,2]
[378547780,1754910667023,-402.93406394,0.00016903,2]
[378547781,1754910667034,-400.0,0.00016903,2]
[378547782,1754910667044,-400.0,0.00016903,2]
[378547783,1754910667054,-411.56,0.00016903,2]
[378547784,1754910667063,-949.87,0.00016903,2]
[378547785,1754910667073,-949.27,0.00016903,2]
[378547786,1754910667083,-400.0,0.00016903,2]
[378547787,1754910667092,-400.0,0.00016903,2]
[378547788,1754910667102,-400.0,0.00016903,2]
[378547789,1754910667112,-563.71,0.00016903,2]
[378547790,1754910667121,-400.0,0.00016903,2]
[378547791,1754910667131,-401.36926956,0.00016903,2]
[378547792,1754910667140,-400.0,0.00016903,2]
[378547793,1754910667150,-400.0,0.00016903,2]
[378547794,1754910667159,-400.0,0.00016903,2]
[378547795,1754910667168,-400.0,0.00016903,2]
[378547796,1754910667177,-400.0,0.00016903,2]
[378547797,1754910667186,-400.0,0.00016903,2]
[378547798,1754910667196,-400.0,0.00016903,2]
[378547799,1754910667206,-571.72,0.00016903,2]
[378547800,1754910667215,-515.442087,0.00016903,2]
[378547801,1754910667225,-509.33,0.00016903,2]
[378547802,1754910667234,-400.0,0.00016903,2]
[378547803,1754910667244,-515.442087,0.00016903,2]
[378547804,1754910667253,-400.0,0.00016903,2]
[378547805,1754910667263,-400.0,0.00016903,2]
[378547806,1754910667272,-401.7919088,0.00016903,2]
[378547807,1754910667282,-254.97969011,0.00016903,2]
[378547808,1754910667291,-400.0,0.00016903,2]
[378547809,1754910667301,-539.803399,0.00016903,2]
[378547810,1754910667310,-482.25,0.00016903,2]
[378547811,1754910667319,-867.36,0.00016903,2]
[378547812,1754910667328,-539.803399,0.00016903,2]
[378547813,1754910667338,-1508.94,0.00016903,2]
[378547814,1754910667347,-400.0,0.00016903,2]
[378547815,1754910667356,-400.0,0.00016903,2]
[378547816,1754910667366,-752.34,0.00016903,2]
[378547817,1754910667375,-400.0,0.00016903,2]
[378547819,1754910667385,-792.997131,0.00016903,2]
[378547820,1754910667395,-400.0,0.00016903,2]
[378547821,1754910667405,-400.0,0.00016903,2]
[378547822,1754910667414,-792.997131,0.00016903,2]
[378547823,1754910667424,-400.0,0.00016903,2]
[378547824,1754910667433,-438.92,0.00016903,2]
[378547825,1754910667442,-1207.49,0.00016903,2]
[378547826,1754910667452,-542.97,0.00016903,2]
[378547827,1754910667462,-400.0,0.00016903,2]
[378547828,1754910667471,-400.0,0.00016903,2]
[378547829,1754910667481,-400.0,0.00016903,2]
[378547830,1754910667490,-400.0,0.00016903,2]
[378547831,1754910667500,-400.0,0.00016903,2]
[378547832,1754910667509,-1919.32,0.00016903,2]
[378547833,1754910667518,-401.0686492,0.00016903,2]
[378547834,1754910667527,-400.0,0.00016903,2]
[378547835,1754910667681,-490.91,0.00016903,2]
[378547836,1754910667696,-400.0,0.00016903,2]
[378547837,1754910667706,-400.0,0.00016903,2]
[378547838,1754910667715,-663.61,0.00016903,2]
[378547839,1754910667725,-403.02163127,0.00016903,2]
[378547840,1754910667735,-400.0,0.00016903,2]
[378547841,1754910667745,-401.79303453,0.00016903,2]
[378547842,1754910667755,-400.0,0.00016903,2]
[378547843,1754910667765,-400.0,0.00016903,2]
[378547844,1754910667775,-826.21,0.00016903,2]
[378547845,1754910667784,-400.0,0.00016903,2]
[378547846,1754910667794,-400.0,0.00016903,2]
[378547847,1754910667803,-400.0,0.00016903,2]
[378547848,1754910667813,-400.0,0.00016903,2]
[378547849,1754910667822,-874.76,0.00016903,2]
[378547850,1754910667832,-5365.84,0.00016903,2]
[378547851,1754910667842,-968.17,0.00016903,2]
[378547852,1754910667851,-400.0,0.00016903,2]
[378547853,1754910667861,-400.0,0.00016903,2]
[378547854,1754910667871,-400.0,0.00016903,2]
[378547855,1754910667880,-400.0,0.00016903,2]
[378547856,1754910667890,-400.0,0.00016903,2]
[378547857,1754910667900,-400.0,0.00016903,2]
[378547858,1754910667910,-151.0,0.00016903,2]
[378547859,1754910667919,-151.0,0.00016903,2]
[378547860,1754910667929,-400.0,0.00016903,2]
[378547861,1754910667938,-162.511509,0.00016903,2]
[378547862,1754910667948,-400.0,0.00016903,2]
[378547863,1754910667957,-583.14,0.00016903,2]
[378547864,1754910667966,-400.0,0.00016903,2]
[378547865,1754910667976,-419.17611793,0.00016903,2]
[378547866,1754910667985,-162.511509,0.00016903,2]
[378547867,1754910667995,-400.0,0.00016903,2]
[378547868,1754910668005,-406.28,0.00016903,2]
[378547869,1754910668014,-2274.53,0.00016903,2]
[378547870,1754910668024,-1190.19,0.00016903,2]
[378547871,1754910668035,-536.87,0.00016903,2]
[378547872,1754910668046,-400.0,0.00016903,2]
[378547873,1754910668055,-400.0,0.00016903,2]
[378547874,1754910668064,-400.0,0.00016903,2]
[378547875,1754910668073,-744.9,0.00016903,2]
[378547876,1754910668084,-400.0,0.00016903,2]
[378547877,1754910668093,-400.0,0.00016903,2]
[378547878,1754910668104,-2141.85,0.00016903,2]
[378547879,1754910668114,-400.0,0.00016903,2]
[378547880,1754910668123,-400.0,0.00016903,2]
[378547881,1754910668132,-400.0,0.00016903,2]
[378547882,1754910668142,-400.0,0.00016903,2]
[378547883,1754910668151,-400.0,0.00016903,2]
[378547884,1754910668161,-400.0,0.00016903,2]
[378547885,1754910668170,-915.21,0.00016903,2]
[378547886,1754910668179,-400.0,0.00016903,2]
[378547887,1754910668189,-400.0,0.00016903,2]
[378547888,1754910668198,-400.0,0.00016903,2]
[378547889,1754910668207,-400.0,0.00016903,2]
[378547890,1754910668216,-400.0,0.00016903,2]
[378547891,1754910668226,-400.0,0.00016903,2]
[378547892,1754910668235,-400.0,0.00016903,2]
[378547893,1754910668245,-372.81652518,0.00016903,2]
[378547894,1754910668254,-400.0,0.00016903,2]
[378547895,1754910668263,-400.0,0.00016903,2]
[378547896,1754910668273,-663.88,0.00016903,2]
[378547897,1754910668282,-402.97758858,0.00016903,2]
[378547898,1754910668291,-400.0,0.00016903,2]
[378547899,1754910668301,-400.0,0.00016903,2]
[378547900,1754910668311,-2441.8,0.00016903,2]
[378547901,1754910668321,-506.01,0.00016903,2]
[378547902,1754910668331,-1095.14,0.00016903,2]
[378547903,1754910668340,-400.0,0.00016903,2]
[378547904,1754910668350,-400.0,0.00016903,2]
[378547905,1754910668359,-504.21921212,0.00016903,2]
[378547906,1754910668368,-400.0,0.00016903,2]
[378547907,1754910668378,-1050.54,0.00016903,2]
[378547908,1754910668387,-400.0,0.00016903,2]
[378547909,1754910668397,-1348.63,0.00016903,2]
[378547910,1754910668407,-400.0,0.00016903,2]
[378547911,1754910668416,-400.0,0.00016903,2]
[378547912,1754910668425,-996.66,0.00016903,2]
[378547913,1754910668435,-400.0,0.00016903,2]
[378547914,1754910668445,-400.0,0.00016903,2]
[378547915,1754910668455,-472.78952397,0.00016903,2]
[378547916,1754910668464,-400.0,0.00016903,2]
[378547917,1754910668479,-404.82127361,0.00016903,2]
[378547918,1754910668488,-1149.53,0.00016903,2]
[378547919,1754910668497,-1015.45,0.00016903,2]
[378547920,1754910668507,-400.0,0.00016903,2]
[378547921,1754910668516,-400.0,0.00016903,2]
[378547922,1754910668525,-400.0,0.00016903,2]
[378547923,1754910668535,-400.0,0.00016903,2]
[378547924,1754910668544,-400.0,0.00016903,2]
[378547925,1754910668554,-400.0,0.00016903,2]
[378547926,1754910668563,-1381.26,0.00016903,2]
[378547927,1754910668573,-482.08570743,0.00016903,2]
[378547928,1754910668583,-400.0,0.00016903,2]
[378547929,1754910668594,-400.0,0.00016903,2]
[378547930,1754910668604,-400.0,0.00016903,2]
[378547931,1754910668613,-648.63,0.00016903,2]
[378547932,1754910668622,-404.14115895,0.00016903,2]
[378547933,1754910668632,-460.0,0.00016903,2]
[378547934,1754910668641,-400.0,0.00016903,2]
[378547935,1754910668651,-400.0,0.00016903,2]
[378547936,1754910668661,-1143.55,0.00016903,2]
[378547937,1754910668670,-400.0,0.00016903,2]
[378547938,1754910668680,-536.41,0.00016903,2]
[378547939,1754910668689,-400.0,0.00016903,2]
[378547940,1754910668700,-4663.639356,0.00016903,2]
[378547941,1754910668709,-4663.639356,0.00016903,2]
[378547942,1754910668719,-2178.7,0.00016903,2]
[378547943,1754910668729,-400.0,0.00016903,2]
[378547944,1754910668738,-1118.28,0.00016903,2]
[378547945,1754910668748,-400.0,0.00016903,2]
[378547946,1754910668758,-4663.639356,0.00016903,2]
[378547947,1754910668767,-4663.639356,0.00016903,2]
[378547948,1754910668777,-400.0,0.00016903,2]
[378547949,1754910668786,-1047.66,0.00016903,2]
[378547950,1754910668796,-400.0,0.00016903,2]
[378547951,1754910668807,-400.0,0.00016903,2]
[378547952,1754910668817,-400.0,0.00016903,2]
[378547953,1754910668827,-400.0,0.00016903,2]
[378547954,1754910668836,-400.0,0.00016903,2]
[378547955,1754910668847,-400.0,0.00016903,2]
[378547956,1754910668859,-400.0,0.00016903,2]
[378547957,1754910668868,-768.24,0.00016903,2]
[378547958,1754910668876,-400.0,0.00016903,2]
[378547959,1754910668885,-400.0,0.00016903,2]
[378547960,1754910668894,-524.13,0.00016903,2]
[378547961,1754910668904,-400.0,0.00016903,2]
[378547962,1754910668913,-520.09,0.00016903,2]
[378547963,1754910668922,-863.56,0.00016903,2]
[378547964,1754910668931,-400.0,0.00016903,2]
[378547965,1754910668941,-271.30927066,0.00016903,2]
[378547966,1754910668950,-400.0,0.00016903,2]
[378547967,1754910668960,-1889.43,0.00016903,2]
[378547968,1754910668970,-400.0,0.00016903,2]
[378547969,1754910668979,-460.0,0.00016903,2]
[378547970,1754910668988,-400.0,0.00016903,2]
[378547971,1754910668997,-151.0,0.00016903,2]
[378547972,1754910669006,-400.0,0.00016903,2]
[378547973,1754910669016,-400.0,0.00016903,2]
[378547974,1754910669025,-151.0,0.00016903,2]
[378547975,1754910669039,-400.0,0.00016903,2]
[378547976,1754910669048,-400.0,0.00016903,2]
[378547977,1754910669057,-400.0,0.00016903,2]
[378547978,1754910669066,-3321.34,0.00016903,2]
[378547979,1754910669076,-400.0,0.00016903,2]
[378547980,1754910669086,-400.0,0.00016903,2]
[378547981,1754910669095,-400.0,0.00016903,2]
[378547982,1754910669106,-400.0,0.00016903,2]
[378547983,1754910669115,-534.58968611,0.00016903,2]
[378547984,1754910669124,-400.0,0.00016903,2]
[378547985,1754910669134,-151.0,0.00016903,2]
[378547986,1754910669143,-151.0,0.00016903,2]
[378547988,1754910669152,-400.0,0.00016903,2]
[378547989,1754910669162,-400.0,0.00016903,2]
[378547990,1754910669171,-400.0,0.00016903,2]
[378547991,1754910669181,-400.0,0.00016903,2]
[378547992,1754910669191,-258.704805,0.00016903,2]
[378547993,1754910669200,-1097.57,0.00016903,2]
[378547994,1754910669210,-400.0,0.00016903,2]
[378547995,1754910669219,-437.714035,0.00016903,2]
[378547996,1754910669229,-1069.95,0.00016903,2]
[378547997,1754910669238,-437.714035,0.00016903,2]
[378547998,1754910669247,-784.91,0.00016903,2]
[378547999,1754910669257,-153.39481872,0.00016903,2]
[378548000,1754910669266,-4611.8,0.00016903,2]
[378548001,1754910669275,-400.0,0.00016903,2]
[378548002,1754910669285,-400.0,0.00016903,2]
[378548003,1754910669295,-400.0,0.00016903,2]
[378548004,1754910669304,-400.0,0.00016903,2]
[378548005,1754910669313,-400.0,0.00016903,2]
[378548006,1754910669323,-400.0,0.00016903,2]
[378548007,1754910669332,-400.0,0.00016903,2]
[378548008,1754910669342,-400.0,0.00016903,2]
[378548009,1754910669351,-1048.69,0.00016903,2]
[378548010,1754910669361,-405.48424814,0.00016903,2]
[378548011,1754910669370,-400.0,0.00016903,2]
[378548012,1754910669379,-400.0,0.00016903,2]
[378548013,1754910669389,-400.0,0.00016903,2]
[378548014,1754910669398,-400.0,0.00016903,2]
[378548015,1754910669408,-7240.01,0.00016903,2]
[378548016,1754910669418,-511.79536538,0.00016903,2]
[378548017,1754910669428,-400.0,0.00016903,2]
[378548018,1754910669437,-400.0,0.00016903,2]
[378548019,1754910669447,-2466.66,0.00016921,2]
[378548020,1754910669456,-2352.86,0.00016921,2]
[378548021,1754910669466,-760.56,0.00016921,2]
[378548022,1754910669475,-1451.36,0.00016921,2]
[378548023,1754910669485,-1714.15,0.00016921,2]
[378548024,1754910669494,-3550.73,0.00016921,2]
[378548025,1754910669504,-762.81,0.00016921,2]
[378548026,1754910669513,-905.87,0.00016921,2]
[378548027,1754910669523,-4291.95,0.00016921,2]
[378548028,1754910669532,-640.72,0.00016921,2]
[378548029,1754910669541,-2374.0,0.00016921,2]
[378548030,1754910669551,-437.714035,0.00016922,2]
[378548031,1754910669561,-437.714035,0.00016922,2]
[378548032,1754910669571,-153.89068727,0.00016923,2]
[378548033,1754910669580,-150.0,0.00016926,2]
[378548034,1754910669590,-491.89105432,0.0001694,2]
[378548035,1754910669599,-1010.56970187,0.00016943,2]
[378548036,1754910669610,-501.47983023,0.00016953,2]
[378548037,1754910669620,-1680.0,0.00016955,2]
[378548038,1754910669630,-150.0,0.00016957,2]
[378548039,1754910669639,-502.79054434,0.00016973,2]
[378548040,1754910669648,-320.65612154,0.00016973,2]
[378548041,1754910669658,-150.83302354,0.00016973,2]
[378548042,1754910669668,-159.82418262,0.00016973,2]
[378548043,1754910669678,-160.12783348,0.00016973,2]
[378548044,1754910669687,-159.82307129,0.00016973,2]
[378548045,1754910669697,-159.82303564,0.00016973,2]
[378548046,1754910669707,-159.82418262,0.00016973,2]
[378548047,1754910669716,-159.82418262,0.00016973,2]
[378548048,1754910669726,-159.82303564,0.00016973,2]
[378548049,1754910669735,-159.82303564,0.00016973,2]
[378548050,1754910669745,-159.82303564,0.00016973,2]
[378548051,1754910669755,-159.775808,0.00016973,2]
[378548052,1754910669764,-159.82418262,0.00016973,2]
[378548053,1754910669773,-159.82307129,0.00016973,2]
[378548054,1754910669783,-159.82307129,0.00016973,2]
[378548055,1754910670134,-500.0,0.00016973,2]
[378548056,1754910670144,-159.82307129,0.00016973,2]
[378548057,1754910670154,-500.40590492,0.00016973,2]
[378548058,1754910670163,-159.82303564,0.00016973,2]
[378548059,1754910670173,-159.82307129,0.00016973,2]
[378548060,1754910670183,-159.82303564,0.00016973,2]
[378548061,1754910670192,-159.79146001,0.00016973,2]
[378548062,1754910670201,-159.82303564,0.00016973,2]
[378548063,1754910670211,-159.82307129,0.00016973,2]
[378548064,1754910670220,-159.82307129,0.00016973,2]
[378548065,1754910670229,-159.82340554,0.00016973,2]
[378548066,1754910670238,-159.82303564,0.00016973,2]
[378548067,1754910670247,-500.0,0.00016973,2]
[378548068,1754910670256,-159.90985704,0.00016973,2]
[378548069,1754910670265,-530.09559838,0.00016973,2]
[378548070,1754910670275,-500.0,0.00016973,2]
[378548071,1754910670284,-160.03271981,0.00016973,2]
[378548072,1754910670294,-500.0,0.00016973,2]
[378548073,1754910670303,-500.0,0.00016973,2]
[378548074,1754910670312,-150.0,0.00016975,2]
[378548075,1754910670322,-300.0,0.00017,2]
[378548076,1754910670332,-1000.0,0.00017037,2]
[378548077,1754910670341,-625.86,0.00017059,2]
[378548078,1754910670350,-150.0,0.00017088,2]
[378548079,1754910670361,-150.0,0.00017088,2]
[378548080,1754910670370,-150.0,0.00017088,2]
[378548081,1754910670379,-150.0,0.00017088,2]
[378548082,1754910670388,-150.0,0.00017088,2]
[378548083,1754910670398,-150.0,0.00017088,2]
[378548084,1754910670407,-150.0,0.00017088,2]
[378548085,1754910670416,-150.0,0.00017088,2]
[378548086,1754910670425,-150.0,0.00017088,2]
[378548087,1754910670434,-150.0,0.00017088,2]
[378548088,1754910670444,-150.0,0.00017088,2]
[378548089,1754910670453,-150.0,0.00017088,2]
[378548090,1754910670463,-150.0,0.00017088,2]
[378548091,1754910670472,-150.0,0.00017088,2]
[378548092,1754910670481,-150.0,0.00017088,2]
[378548093,1754910670490,-150.0,0.00017088,2]
[378548094,1754910670500,-150.0,0.00017088,2]
[378548095,1754910670510,-150.0,0.00017093,2]
[378548096,1754910670519,-150.0,0.00017101,2]
[378548097,1754910670529,-1491.30447232,0.00017104,2]
[378548098,1754910670538,-150.0,0.00017111,2]
[378548099,1754910670548,-150.0,0.00017128,2]
[378548100,1754910670557,-150.0,0.00017134,2]
[378548101,1754910670566,-150.0,0.00017164,2]
[378548102,1754910670576,-500.0,0.00017173,2]
[378548103,1754910670586,-159.82307129,0.00017173,2]
[378548104,1754910670595,-159.82303565,0.00017173,2]
[378548105,1754910670605,-500.0,0.00017173,2]
[378548106,1754910670614,-500.0,0.00017173,2]
[378548107,1754910670623,-159.82418262,0.00017173,2]
[378548108,1754910670633,-159.82303564,0.00017173,2]
[378548109,1754910670642,-159.82303564,0.00017173,2]
[378548110,1754910670652,-159.82303564,0.00017173,2]
[378548111,1754910670661,-159.82307129,0.00017173,2]
[378548112,1754910670671,-159.82307129,0.00017173,2]
[378548113,1754910670680,-159.82303564,0.00017173,2]
[378548114,1754910670689,-159.8249457,0.00017173,2]
[378548115,1754910670698,-159.82307129,0.00017173,2]
[378548116,1754910670707,-159.82303564,0.00017173,2]
[378548117,1754910670717,-159.82303564,0.00017173,2]
[378548118,1754910670726,-159.82340554,0.00017173,2]
[378548119,1754910670735,-159.82307129,0.00017173,2]
[378548120,1754910670745,-1125.92,0.00017174,2]
[378548121,1754910670754,-1794.64,0.00017174,2]
[378548122,1754910670764,-400.0,0.00017174,2]
[378548123,1754910670773,-400.0,0.00017174,2]
[378548124,1754910670782,-2199.73,0.00017174,2]
[378548125,1754910670792,-400.0,0.00017174,2]
[378548126,1754910670802,-572.9,0.00017174,2]
[378548127,1754910670812,-400.0,0.00017174,2]
[378548128,1754910670822,-1632.68,0.00017174,2]
[378548129,1754910670831,-1242.51,0.00017174,2]
[378548130,1754910670841,-4880.84,0.00017174,2]
[378548131,1754910670850,-3605.25,0.00017174,2]
[378548132,1754910670861,-1234.88,0.00017174,2]
[378548133,1754910670870,-400.0,0.00017174,2]
[378548134,1754910670880,-527.5,0.00017174,2]
[378548135,1754910670890,-7111.48,0.00017174,2]
[378548136,1754910670899,-4247.77,0.00017174,2]
[378548137,1754910670908,-2593.58,0.00017174,2]
[378548138,1754910670918,-1819.25,0.00017174,2]
[378548139,1754910670928,-1193.8,0.00017174,2]
[378548140,1754910670938,-209.6,0.00017174,2]
[378548141,1754910670947,-8325.71,0.00017174,2]
[378548142,1754910670957,-400.0,0.00017174,2]
[378548143,1754910670967,-1423.06,0.00017174,2]
[378548144,1754910670977,-401.3,0.00017174,2]
[378548145,1754910670987,-500.0,0.00017174,2]
[378548146,1754910670996,-597.71,0.00017174,2]
[378548147,1754910671005,-479.542998,0.00017174,2]
[378548148,1754910671015,-400.0,0.00017174,2]
[378548149,1754910671025,-400.0,0.00017174,2]
[378548150,1754910671036,-400.0,0.00017174,2]
[378548151,1754910671047,-2199.08,0.00017174,2]
[378548152,1754910671058,-400.0,0.00017174,2]
[378548153,1754910671067,-151.0,0.00017175,2]
[378548154,1754910671077,-193.51622795,0.00017175,2]
[378548155,1754910671088,-151.0,0.00017175,2]
[378548156,1754910671097,-500.0,0.00017175,2]
[378548157,1754910671108,-262.68319736,0.00017175,2]
[378548158,1754910671119,-514.59,0.00017175,2]
[378548159,1754910671129,-400.0,0.00017175,2]
[378548160,1754910671139,-400.0,0.00017175,2]
[378548161,1754910671148,-1705.89,0.00017175,2]
[378548162,1754910671158,-400.0,0.00017175,2]
[378548163,1754910671168,-400.0,0.00017175,2]
[378548164,1754910671178,-770.76,0.00017175,2]
[378548165,1754910671187,-400.0,0.00017175,2]
[378548166,1754910671196,-400.0,0.00017175,2]
[378548167,1754910671206,-400.0,0.00017175,2]
[378548168,1754910671216,-400.0,0.00017175,2]
[378548169,1754910671225,-213.24579374,0.00017175,2]
[378548170,1754910671235,-915.52,0.00017175,2]
[378548171,1754910671244,-400.0,0.00017175,2]
[378548172,1754910671254,-151.0,0.00017175,2]
[378548173,1754910671264,-683.95,0.00017175,2]
[378548174,1754910671273,-680.96,0.00017175,2]
[378548175,1754910671282,-400.0,0.00017175,2]
[378548176,1754910671292,-585.42,0.00017175,2]
[378548177,1754910671301,-949.89,0.00017175,2]
[378548178,1754910671312,-400.0,0.00017175,2]
[378548179,1754910671332,-400.0,0.00017175,2]
[378548180,1754910671349,-400.0,0.00017175,2]
[378548181,1754910671359,-653.25,0.00017175,2]
[378548182,1754910671369,-400.0,0.00017175,2]
[378548183,1754910671378,-475.5,0.00017175,2]
[378548184,1754910671388,-400.0,0.00017175,2]
[378548185,1754910671397,-403.38697008,0.00017175,2]
[378548186,1754910671407,-400.0,0.00017175,2]
[378548188,1754910671416,-400.0,0.00017175,2]
[378548189,1754910671426,-400.0,0.00017175,2]
[378548190,1754910671435,-400.0,0.00017175,2]
[378548191,1754910671445,-1063.32,0.00017175,2]
[378548192,1754910671454,-407.30144708,0.00017175,2]
[378548193,1754910671464,-400.0,0.00017175,2]
[378548194,1754910671473,-402.012613,0.00017175,2]
[378548195,1754910671483,-400.0,0.00017175,2]
[378548196,1754910671492,-1028.79,0.00017175,2]
[378548197,1754910671501,-400.0,0.00017175,2]
[378548198,1754910671511,-560.67,0.00017175,2]
[378548199,1754910671521,-400.0,0.00017175,2]
[378548200,1754910671530,-800.03,0.00017175,2]
[378548201,1754910671539,-400.0,0.00017175,2]
[378548202,1754910671549,-400.0,0.00017175,2]
[378548203,1754910671558,-400.0,0.00017175,2]
[378548204,1754910671567,-473.17300868,0.00017175,2]
[378548205,1754910671576,-822.6,0.00017175,2]
[378548206,1754910671586,-400.0,0.00017175,2]
[378548207,1754910671595,-515.442087,0.00017175,2]
[378548208,1754910671604,-400.0,0.00017175,2]
[378548209,1754910671614,-1477.36,0.00017175,2]
[378548210,1754910671624,-515.442087,0.00017175,2]
[378548211,1754910671633,-400.0,0.00017175,2]
[378548212,1754910671643,-400.0,0.00017175,2]
[378548213,1754910671652,-404.75014074,0.00017175,2]
[378548214,1754910671662,-400.0,0.00017175,2]
[378548215,1754910671672,-1020.3,0.00017175,2]
[378548216,1754910671681,-625.0,0.00017175,2]
[378548217,1754910671691,-400.0,0.00017175,2]
[378548218,1754910671701,-400.0,0.00017175,2]
[378548219,1754910671710,-400.0,0.00017175,2]
[378548220,1754910671720,-402.63920387,0.00017175,2]
[378548221,1754910671729,-418.89,0.00017175,2]